Workbook

Sheet Loss Calculation
C1: Amounts in thousands of MWh
D4: Input Data from 2014 FERC Form No.1, Page 401a
C5: SOURCES | G5: USES
C7: Net Generation, Ln 9 | F7: 60205.324 | G7: Sales to Ultimate Consumers, Ln 22 | J7: 54999.277
C8: Purchases, Ln 10 | F8: 9846.352 | G8: Requirements Sales for Resale, Ln 23 | J8: 225.497
F9: 70051.676
C10: Net Exchanges, Ln 14 | F10: 362.618 | G10: Non-requirements Sales for Resale, Ln 24 | J10: 10044.75
G11: Energy Used by the Company, Ln 26 | J11: 134.392
C12: Received, Ln 16 | F12: 13675 | G12: Total Energy Losses, Ln 27 | J12: 4637.928
C13: Delivered, Ln 17 | F13: -13564
B14: 1 | C14: Transmission By Others Losses, Ln 19 | F14: -483.282
C15: Total | F15: 70042.012 | G15: Total | J15: 70041.844
C18: Recalculated and Adjusted Received and Delivered Energy
B19: REF | C19: Sources | G19: Uses | K19: REF
B20: 1 | C20: Generation, 401a lines 9,10 | F20: =F7+F8 -> 70051.676 | G20: Sales to Ultimate Consumers, 401a line 22 | J20: =ROUND(J7,0) -> 54999 | K20: 18
B21: 2 | C21: Net exchange, 401a line 14 | F21: =F10 -> 362.618 | G21: Requirements Sales for Resale, 401a line 23 | J21: =+J8 -> 225.497 | K21: 19
B22: 3 | C22: Transmission by Others Losses, 401a line 19 | F22: =F14 -> -483.282
F23: =SUM(F20:F22) -> 69931.012
B24: 4 | C24: Reconciliation of Transmission Received (401a line 16): | G24: On-system non-requirements sales for resale subject to losses | J24: =+F68 -> 3787.51192 | K24: 20
B25: 5 | C25: Pt-to-Pt transmission received - losses financially settled | D25: Att. A | E25: ='Attachment A'!J105/1000 -> 3608.869
B26: 6 | C26: Network transmission received - losses financially settled | D26: Att. B | E26: ='Attachment B'!J23/1000 -> 89.375
B27: 7 | C27: WAPA RS 262 delivered | D27: Att. C | E27: ='Attachment C'!E22/1000 -> 1648.723 | G27: Company sales, 401a line 26 | J27: =+J11 -> 134.392 | K27: 21
B28: 8 | C28: WAPA RS 263 delivered | D28: Att. C | E28: ='Attachment C'!F22/1000 -> 87.355
B29: 9 | C29: WAPA losses received | D29: Att. C | E29: =-'Attachment C'!I8/1000 -> 110.832
B30: 10 | C30: Black Hills transmission received - losses financially settled | D30: Att. D | E30: ='Attachment D '!L20/1000 -> 222.335
B31: 11 | C31: Transmission received - losses physically settled | D31: Att. D | E31: ='Attachment C'!I37/1000 -> 17.234
B32: 12 | C32: Transmission received -- supplied losses - network customers | D32: Att. C | E32: ='Attachment C'!I38/1000 -> 7889.876
B33: 13 | C33: Total Transmission Received: | F33: =SUM(E25:E32) -> 13674.599 | G33: Transmission delivered without losses | J33: =+H78 -> 13081.078 | K33: 22
B35: 14 | C35: Gross Received | F35: =+F23+F33 -> 83605.611
B37: 15 | C37: Less third-party sales on-system (reported in Energy Received (duplicate transactions)) | F37: =+E67 -> -391.09
B38: 16 | C38: Less off-system sales/purchases w/o losses | D38: Att. F | F38: =+E66 -> -5691.782
B39: 17 | C39: Net on-system received | F39: =SUM(F35:F38) -> 77522.739 | G39: Total delivered with on-system losses | J39: =SUM(J20:J34) -> 72227.47892 | K39: 23
G40: Total system delivered loss rate including off-system | J40: =H42/J39 -> 0.07331364959 | K40: 24
C42: Total losses (Sources-Uses) | H42: =F39-J39 -> 5295.26008 | K42: 25
C43: Distribution losses / Fixed 4.64% Loss Rate (see page 2) | H43: =+J79 -> 1995.244814 | K43: 26
C44: Transmission losses (total losses - distribution losses) | H44: =H42-H43 -> 3300.015267 | K44: 27
C45: Transmission deliveries = Total delivered (Uses) + Distribution losses = | H45: =J39+H43 -> 74222.72373 | K45: 28
C46: Transmission loss rate @ delivery = | H46: =H44/H45 -> 0.04446098312 | K46: 29
C48: Amounts in thousands of MWh
C50: Transmission and Distribution Losses Adjustments and Allocation
G51: Current Tran Loss Factor | I51: Distribution Loss Factor
B52: REF | C52: Schedule 10 loss factor (prior to update) | G52: 0.04259 | I52: 0.04644
F53: FERC # w/ Current Loss Factor | G53: Trans Loss embedded in current #s | H53: Adjusted to remove current Loss Factor (total delivered) | I53: Retail Load w/ Dist. Loss | J53: Dist. Loss
F54: A | G54: C =A-B | H54: B
B55: 30 | C55: TRANSMISSION: Sales to ultimate consumers transmission (including interdepartmental sales) | F55: =14166 -> 14166 | H55: =+F55 -> 14166 | I55: =+H55 -> 14166
B57: 31 | C57: DISTRIBUTION: Sales to ultimate consumers distribution (including interdepartmental sales) | F57: 40833 | H57: =F57 -> 40833 | I57: =(F57)/(1-I52) -> 42821.63681 | J57: =I57-H57 -> 1988.636814
B59: 32 | C59: Requirements sales for resale | F59: =J8 -> 225.497 | H59: =F59 -> 225.497
C61: Adjustments:
B62: 33 | C62: Non-requirements sales for resale, 401a line 24 | E62: =J10 -> 10044.75
C63: Adjustments to remove financial transactions, duplicate transactions and off-system activity:
B64: 34 | C64: Less losses included paid by Black Hills | D64: Att. E | E64: -14.01808038
B65: 35 | C65: Less Pt-to-Pt, network, and OS losses - financially settled | D65: Att. E | E65: =-'Attachment E'!K62/1000 -> -160.348
B66: 36 | C66: Off system sales/purchases w/o losses | D66: Att. F | E66: =-'Attachment F'!C9 -> -5691.782
B67: 37 | C67: Third party sales on-system (reported in Energy Received (duplicate transactions)) | E67: -391.09
B68: 38 | C68: Total on-system non-requirements sales for resale subject to losses | F68: =SUM(E62:E67) -> 3787.51192 | H68: =F68-G68 -> 3787.51192
B70: 39 | C70: Energy used by the company (electric dept only, excluding station use, 401a line 26) | F70: =J27 -> 134.392 | H70: =F70-G70 -> 134.392 | I70: =ROUND(F70/(1-I52),0) -> 141 | J70: =I70-H70 -> 6.608
C72: Transmission received/delivered (adjusted 401a lines 16 & 17):
B73: 40 | C73: Transmission received - losses financially settled | E73: Att. A, B | F73: =+E25+E26 -> 3698.244 | G73: =+F73-H73 -> 151.244 | H73: =ROUND(F73/(1+G$52),0) -> 3547
B74: 41 | C74: WAPA adjustments (losses and RS 262 & 263 adj.) | E74: Att. C | F74: =+E27+E28+E29 -> 1846.91 | G74: =+E29 -> 110.832 | H74: =+F74-G74 -> 1736.078
B75: 42 | C75: Transmission pt-to-pt Black Hills - losses financially settled | E75: Att. D | F75: =+E30 -> 222.335 | G75: =+F75-H75 -> 9.335 | H75: =ROUND(F75/(1+G$52),0) -> 213
B76: 43 | C76: Transmission other - losses physically settled | E76: Att. D | F76: =+E31 -> 17.234 | G76: =+F76-H76 -> 0.234 | H76: =ROUND(F76/(1+G$52),0) -> 17
B77: 44 | C77: Transmission received - supplied losses | E77: Att. C | F77: =+E32 -> 7889.876 | G77: =+F77-H77 -> 321.876 | H77: =ROUND(F77/(1+G52),0) -> 7568
B78: 45 | C78: Total Transmission: | F78: =SUM(F73:F77) -> 13674.599 | G78: =SUM(G73:G77) -> 593.521 | H78: =SUM(H73:H77) -> 13081.078
B79: 46 | C79: Total | F79: =SUM(F55:F59)+F68+F70+F78 -> 72820.99992 | G79: =SUM(G73:G77) -> 593.521 | H79: =SUM(H55:H59)+H68+H70+H78 -> 72227.47892 | I79: =SUM(I57:I77) -> 42962.63681 | J79: =SUM(J57:J77) -> 1995.244814

Sheet Attachment A
A2: FF1 2014 328 MWH RECEIVED/DELIVERED
A3: TRANSMISSION MWH FINANCIAL SETTLEMENT of LOSSES
H5: Statistical | I5: Rate Schedule
B6: Page # | D6: Line # | F6: Customer | H6: Classification | I6: Tariff Number | J6: MWH
B8: 329 | D8: 4 | F8: Basin Electric Power Cooperative | H8: NF | I8: V11-1,2,8 | J8: 2688
B9: 329 | D9: 14 | F9: Black Hills Wyoming | H9: SFP | I9: V11-1,2,7 | J9: 215
B10: 329 | D10: 15 | F10: Black Hills Wyoming | H10: NF | I10: V11-1,2,8 | J10: 427
B11: 329 | D11: 19 | F11: Bonneville Power Administration | H11: LFP | I11: V11-2,7 | J11: 241995
B12: 329 | D12: 20 | F12: Bonneville Power Administration | H12: AD | I12: V11-2,7 | J12: 13872
B13: 329 | D13: 27 | F13: Bonneville Power Administration | H13: LFP | I13: V11-2,7 | J13: 68312
B14: 329.1 | D14: 1 | F14: Bonneville Power Administration | H14: NF | I14: V11-1,2,8 | J14: 298
B15: 329.1 | D15: 4 | F15: Cargill Power Markets, LLC | H15: NF | I15: V11-1,2,8 | J15: 39210
B16: 329.1 | D16: 5 | F16: Cargill Power Markets, LLC | H16: AD | I16: V11-1,2,8 | J16: 13699
B17: 329.1 | D17: 7 | F17: Cargill Power Markets, LLC | H17: AD | I17: V11-1,2,7 | J17: 1263
B18: 329.1 | D18: 8 | F18: Constellation Energy Commodities Group | H18: NF | I18: V11-5,6,11 | J18: 1789
B19: 329.1 | D19: 9 | F19: Constellation Energy Commodities Group | H19: SFP | I19: V11-1-3,7 | J19: 1650
B20: 329.1 | D20: 10 | F20: Coral Power, LLC | H20: NF | I20: V11-1,2,8 | J20: 50003
B21: 329.1 | D21: 11 | F21: Coral Power, LLC | H21: AD | I21: V11-1,2,8 | J21: 1208
B22: 329.1 | D22: 12 | F22: Coral Power, LLC | H22: SFP | I22: V11-1,2,7 | J22: 115557
B23: 329.1 | D23: 13 | F23: Coral Power, LLC | H23: AD | I23: V11-1,2,7 | J23: 10375
B24: 329.1 | D24: 18 | F24: Deseret Generation & Trans. | H24: NF | I24: V11-1,2 | J24: 6386
B25: 329.1 | D25: 21 | F25: Enel Cove Fort, LLC | H25: AD | I25: V11 | J25: 13969
B26: 329.1 | D26: 26 | F26: Iberdrola Renewables, LLC | H26: NF | I26: V11-1-3,8,9,11 | J26: 248249
B27: 329.1 | D27: 27 | F27: Iberdrola Renewables, LLC | H27: AD | I27: V11-1-3,8,9 | J27: 30155
B28: 329.1 | D28: 28 | F28: Iberdrola Renewables, LLC | H28: SFP | I28: V11-1,2,3,7 | J28: 67933
B29: 329.1 | D29: 29 | F29: Iberdrola Renewables, LLC | H29: AD | I29: V11-1,2,3,7 | J29: 13621
B30: 329.1 | D30: 32 | F30: Iberdrola Renewables, LLC | H30: LFP | I30: V11-1,2,7 | J30: 81958
B31: 329.1 | D31: 33 | F31: Iberdrola Renewables, LLC | H31: AD | I31: V11-1,2,7 | J31: 11604
B32: 329.2 | D32: 3 | F32: Idaho Power Company | H32: LFP | I32: V11-1,2,7 | J32: 59643
B33: 329.2 | D33: 9 | F33: Idaho Power Company | H33: NF | I33: V11-1,2,8 | J33: 54046
B34: 329.2 | D34: 10 | F34: Idaho Power Company | H34: AD | I34: V11-1,2,8 | J34: 81
B35: 329.2 | D35: 11 | F35: Idaho Power Company | H35: SFP | I35: V11-1,2,7 | J35: 3080
B36: 329.2 | D36: 13 | F36: Idaho Power Marketing Operations | H36: NF | I36: V11-1,2,8 | J36: 811
B37: 329.2 | D37: 14 | F37: JP Morgan Ventures Energy Corp. | H37: NF | I37: V11-1-3,8,9,11 | J37: 28479
B38: 329.2 | D38: 15 | F38: JP Morgan Ventures Energy Corp. | H38: AD | I38: V11-1,2,3 | J38: 6172
B39: 329.2 | D39: 16 | F39: Los Angeles Department of Water & Power | H39: NF | I39: V11-1,2,8 | J39: 4356
B40: 329.2 | D40: 17 | F40: Macquarie Energy, LLC | H40: NF | I40: V11-1,2,8 | J40: 5642
B41: 329.2 | D41: 18 | F41: Macquarie Energy, LLC | H41: AD | I41: V11-1,2,8 | J41: 9248
B42: 329.2 | D42: 19 | F42: Macquarie Energy, LLC | H42: SFP | I42: V11-1,2,7 | J42: 6687
B43: 329.2 | D43: 20 | F43: Macquarie Energy, LLC | H43: AD | I43: V11-1,2,7 | J43: 8050
B44: 329.2 | D44: 23 | F44: Morgan Stanley Capital Group, Inc. | H44: NF | I44: V11-1-3,8 | J44: 149158
B45: 329.2 | D45: 24 | F45: Morgan Stanley Capital Group, Inc. | H45: AD | I45: V11-1-3,8 | J45: 10975
B46: 329.2 | D46: 25 | F46: Morgan Stanley Capital Group, Inc. | H46: SFP | I46: V11-1,2,7 | J46: 10892
B47: 329.2 | D47: 26 | F47: Morgan Stanley Capital Group, Inc. | H47: AD | I47: V11-1,2,7 | J47: 1582
B48: 329.2 | D48: 27 | F48: Nevada Power Company | H48: NF | I48: V11-1,2,8 | J48: 4001
B49: 329.2 | D49: 28 | F49: Nevada Power Company | H49: AD | I49: V11-1,2,8 | J49: 466
B50: 329.2 | D50: 29 | F50: Nevada Power Company | H50: SFP | I50: V11-1,2,7 | J50: 1500
B51: 329.2 | D51: 30 | F51: NextEra Energy Resources, LLC | H51: LFP | I51: V11-1-3,5-6,7,9 | J51: 211794
B52: 329.2 | D52: 31 | F52: NextEra Energy Resources, LLC | H52: AD | I52: V11-5,6,7,9 | J52: 25327
B53: 329.2 | D53: 32 | F53: NextEra Energy Resources, LLC | H53: NF | I53: V11-1,2,3,8,11 | J53: 1048
B54: 329.2 | D54: 33 | F54: NextEra Energy Resources, LLC | H54: AD | I54: V11-1,2,8 | J54: 42
B55: 329.3 | D55: 5 | F55: Pacific Gas & Electric Company | H55: NF | I55: V11-1,2,8 | J55: 260
B56: 329.3 | D56: 6 | F56: Portland General Electric Company | H56: NF | I56: V11-1,2,8 | J56: 9388
B57: 329.3 | D57: 7 | F57: Portland General Electric Company | H57: AD | I57: V11-1,2,8 | J57: 1149
B58: 329.3 | D58: 8 | F58: Portland General Electric Company | H58: SFP | I58: V11-1,2,7 | J58: 1768
B59: 329.3 | D59: 9 | F59: Portland General Electric Company | H59: AD | I59: V11-1,2,7 | J59: 1210
B60: 329.3 | D60: 13 | F60: Powerex Corporation | H60: LFP | I60: V11-1,2,7 | J60: 620286
B61: 329.3 | D61: 14 | F61: Powerex Corporation | H61: AD | I61: V11-1,2,7 | J61: 13947
B62: 329.3 | D62: 23 | F62: Powerex Corporation | H62: NF | I62: V11-1,2,3,8 | J62: 488152
B63: 329.3 | D63: 24 | F63: Powerex Corporation | H63: AD | I63: V11-1,2,8 | J63: 4162
B64: 329.3 | D64: 25 | F64: Powerex Corporation | H64: SFP | I64: V11-1,2,3,7 | J64: 33375
B65: 329.3 | D65: 26 | F65: Powerex Corporation | H65: AD | I65: V11-1,2,7 | J65: 611
B66: 329.3 | D66: 27 | F66: PPL Energy Plus, LLC | H66: NF | I66: V11-1,2,8 | J66: 4136
B67: 329.3 | D67: 28 | F67: PPL Energy Plus, LLC | H67: AD | I67: V11-1,2,8 | J67: 641
B68: 329.3 | D68: 29 | F68: PPL Energy Plus, LLC | H68: SFP | I68: V11-1,2,7 | J68: 4626
B69: 329.3 | D69: 32 | F69: Puget Sound Power & Light Company | H69: NF | I69: V11-1,2,8 | J69: 1976
B70: 329.3 | D70: 33 | F70: Rainbow Energy Marketing Corporation | H70: NF | I70: V11-1,2,8 | J70: 492
B71: 329.3 | D71: 34 | F71: Rainbow Energy Marketing Corporation | H71: AD | I71: V11-1,2 | J71: 1200
B72: 329.4 | D72: 1 | F72: Rainbow Energy Marketing Corporation | H72: SFP | I72: V11-1,2,7 | J72: 17328
B73: 329.4 | D73: 2 | F73: Sacramento Municipal Utility District | H73: LFP | I73: V11-1,2,7 | J73: 105118
B74: 329.4 | D74: 3 | F74: Sacramento Municipal Utility District | H74: AD | I74: V11-1,2,7 | J74: 1632
B75: 329.4 | D75: 5 | F75: Salt River Project | H75: LFP | I75: V11-1,2,7 | J75: 121700
B76: 329.4 | D76: 6 | F76: Salt River Project | H76: NF | I76: V11-1,2,3,8 | J76: 3577
B77: 329.4 | D77: 7 | F77: Salt River Project | H77: AD | I77: V11-1,2,3,7 | J77: 1586
B78: 329.4 | D78: 11 | F78: Sierra Pacific Power Company | H78: NF | I78: V11-1,2,8 | J78: 280
B79: 329.4 | D79: 12 | F79: Southern California Edison Company | H79: NF | I79: V11-1-3,8,9,11 | J79: 315360
B80: 329.4 | D80: 13 | F80: Southern California Edison Company | H80: AD | I80: V11-1-3,8,9,11 | J80: 17895
B81: 329.4 | D81: 14 | F81: Southern California Edison Company | H81: SFP | I81: V11-1-3,7 | J81: 1000
B82: 329.4 | D82: 15 | F82: Southern California Edison Company | H82: AD | I82: V11-1-3,7 | J82: 270
B83: 329.4 | D83: 17 | F83: Southern California Public Power Authority | H83: OS | I83: V11-9,11 | J83: 1144
B84: 329.4 | D84: 21 | F84: Tenaska Power Services Co | H84: NF | I84: V11-1,2,8 | J84: 43092
B85: 329.4 | D85: 22 | F85: Tenaska Power Services Co | H85: AD | I85: V11-1,2,8 | J85: 8321
B86: 329.4 | D86: 23 | F86: Tenaska Power Services Co | H86: SFP | I86: V11-1,2,7 | J86: 40590
B87: 329.4 | D87: 24 | F87: Tenaska Power Services Co | H87: AD | I87: V11-1,2,7 | J87: 11080
B88: 329.4 | D88: 25 | F88: The Energy Authority, Inc. | H88: NF | I88: V11-1,2,8 | J88: 2661
B89: 329.4 | D89: 26 | F89: Thermo No. 1 BE -01 | H89: LFP | I89: V11-1-3,5-6,7,9 | J89: 53417
B90: 329.4 | D90: 27 | F90: Thermo No. 1 BE -01 | H90: AD | I90: V11-1-3,5-6,7,9 | J90: 5984
B91: 329.4 | D91: 28 | F91: TransAlta Energy Marketing | H91: NF | I91: V11-1,2,8 | J91: 54023
B92: 329.4 | D92: 29 | F92: TransAlta Energy Marketing | H92: AD | I92: V11-1,2,8 | J92: 1813
B93: 329.4 | D93: 34 | F93: Tri-State Generation & Trans. | H93: NF | I93: V11-1,2,8 | J93: 14522
B94: 329.5 | D94: 1 | F94: Tri-State Generation & Trans. | H94: AD | I94: V11-1,2,8 | J94: 246
B95: 329.5 | D95: 2 | F95: Tri-State Generation & Trans. | H95: SFP | I95: V11-1,2,7 | J95: 244
B96: 329.5 | D96: 3 | F96: Tri-State Generation & Trans. | H96: AD | I96: V11-1,2,7 | J96: 9
B97: 329.5 | D97: 11 | F97: Utah Associated Municipal Power Systems | H97: NF | I97: V11-1,2,3,8 | J97: 4241
B98: 329.5 | D98: 12 | F98: Utah Associated Municipal Power Systems | H98: AD | I98: V11-1,2,8 | J98: 105
B99: 329.5 | D99: 15 | F99: Utah Municipal Power Agency | H99: NF | I99: V11-1,2,8 | J99: 40
B100: 329.5 | D100: 26 | F100: Western Area Power Administration Colorado River Storage Project | H100: SFP | I100: V11-1,2,7 | J100: 63
B101: 329.5 | D101: 27 | F101: Western Area Power Administration Colorado Missouri | H101: NF | I101: V11-1,2,8 | J101: 636
F103: Total MWH | J103: =SUM(J8:J102) -> 3654872
F104: Accrual Adjustment | J104: -46003
F105: Total point-to-point schedules subject to losses (as reported on FERC Form No. 1, page 329) | J105: =J103+J104 -> 3608869
I106: REF | J106: 5

Sheet Attachment B
A2: FF1 2014 328 MWH RECEIVED/DELIVERED
A3: TRANSMISSION MWH FINANCIAL SETTLEMENT of LOSSES - Network customers
H7: Statistical | I7: Rate Schedule
B8: Page # | D8: Line # | F8: Customer | H8: Classification | I8: Tariff Number | J8: MWH
B10: 329 | D10: 2 | F10: Basin Electric Power Cooperative | H10: FNO | I10: V11-1,2,3 | J10: 335
B11: 329 | D11: 21 | F11: Bonneville Power Administration | H11: FNO | I11: V11-1,2,3 | J11: 2047
B12: 329 | D12: 23 | F12: Bonneville Power Administration | H12: FNO | I12: V11-1,2,3 | J12: 617
B13: 329 | D13: 25 | F13: Bonneville Power Administration | H13: FNO | I13: V11-1,2,3 | J13: 126
B14: 329 | D14: 31 | F14: Bonneville Power Administration | H14: FNO | I14: V11-1,2,3,4 | J14: 3230
B15: 329.1 | D15: 2 | F15: Bonneville Power Administration | H15: FNO | I15: V11-1,2,3,4 | J15: 11986
B16: 329.1 | D16: 34 | F16: Iberdrola Renewables, LLC | H16: FNO | I16: V11-1,2,3 | J16: 3540
B17: 329.2 | D17: 34 | F17: Noble Americas Energy Solutions LLC | H17: FNO | I17: V11-1,2,3,4 | J17: 0
B18: 329.4 | D18: 32 | F18: Tri-State Generation & Transmission | H18: FNO | I18: V11-1,2,3,4 | J18: 12796
B19: 329.5 | D19: 4 | F19: U.S. Department of the Interior, Bureau of Reclamation | H19: FNO | I19: V11-1,2,3 | J19: 3
B20: 329.5 | D20: 23 | F20: Western Area Power Administration | H20: FNO | I20: V11-1,2 | J20: 2
H21: Total MWH | J21: =SUM(J10:J20) -> 34682
H22: Accrual | J22: 54693
H23: Total | J23: =J21+J22 -> 89375
I24: REF | J24: 6
F106: Total point-to-point schedules subject to losses (as reported on FERC Form 1, page 329)

Sheet Attachment C
A2: Western Area Power Administration Total Received/Delivered & Total Received Per FF1 2014 328 and 401a Summary
A3: 2014
A5: Amounts in MWh | D5: Western Rec./Del. Reconciliation | J5: REF Loss Factor Clauclation Worksheet
E6: RS 262 | F6: RS 263 | G6: Subtotal | H6: Energy Return (Variation) | I6: Net
D7: Energy Received | E7: 1753557 | F7: 93353 | G7: =SUM(E7:F7) -> 1846910 | H7: 0 | I7: =SUM(G7:H7) -> 1846910
D8: Losses | E8: -104834 | F8: -5998 | G8: =SUM(E8:F8) -> -110832 | I8: =SUM(G8:H8) -> -110832 | J8: 9
D9: Energy Delivered | E9: =SUM(E7:E8) -> 1648723 | F9: =SUM(F7:F8) -> 87355 | G9: =SUM(G7:G8) -> 1736078 | H9: =SUM(H7:H8) -> 0 | I9: =SUM(I7:I8) -> 1736078
D11: Details:
A12: Page # | C12: Line # | D12: Total Received: Reported
A13: FF1 Pg 328.5 | C13: 18,20(i) | D13: OS Reported | E13: 1583864 | F13: 84635 | G13: =SUM(E13:F13) -> 1668499 | H13: 0 | I13: =SUM(G13:H13) -> 1668499
A14: FF1 Pg 328.5 | C14: 19,21(i) | D14: AD Reported | E14: 187719 | F14: 8557 | G14: =+E14+F14 -> 196276 | H14: 0 | I14: =SUM(G14:H14) -> 196276
A15: FF1 Pg 328.5 | D15: Accrual Adjustment (included in total Accrual) | E15: -18026 | F15: 161 | G15: =+E15+F15 -> -17865 | H15: 0 | I15: =SUM(G15:H15) -> -17865
D16: Total Received | E16: =SUM(E13:E15) -> 1753557 | F16: =SUM(F13:F15) -> 93353 | G16: =SUM(G13:G15) -> 1846910 | H16: =SUM(H13:H15) -> 0 | I16: =SUM(I13:I15) -> 1846910
D18: Total Delivered: Reported
A19: FF1 Pg 328.5 | C19: 18,20(j) | D19: OS Reported | E19: 1489212 | F19: 79280 | G19: =SUM(E19:F19) -> 1568492 | I19: =SUM(G19:H19) -> 1568492
A20: FF1 Pg 328.5 | C20: 19,21(j) | D20: AD Reported | E20: 176455 | F20: 8075 | G20: =+E20+F20 -> 184530 | I20: =SUM(G20:H20) -> 184530
A21: FF1 Pg 328.5 | D21: Accrual Adjustment (included in total Accrual) | E21: -16944 | F21: 0 | G21: =+E21+F21 -> -16944 | I21: =SUM(G21:H21) -> -16944
D22: Total Delivered | E22: =SUM(E19:E21) -> 1648723 | F22: =SUM(F19:F21) -> 87355 | G22: =SUM(G19:G21) -> 1736078 | I22: =SUM(I19:I21) -> 1736078 | J22: 7, 8
D27: Total Received per 328 and 401a-lines 16/17 as reported
H28: Accrual | I28: Total
G29: Received | H29: Received | I29: Received
G30: per 328 | H30: FF1 Pg 328.5 | I30: Per 401a
D32: Total point-to-point schedules subject to losses - as reported on 328 (financial settlement) | G32: =+'Attachment A'!J103 -> 3654872 | H32: =+'Attachment A'!J104 -> -46003 | I32: =+G32+H32 -> 3608869 | J32: 5
D33: Total network schedules financially settled - subst of total report on 328 | G33: =+'Attachment B'!J21 -> 34682 | H33: =+'Attachment B'!J22 -> 54693 | I33: 89375 | J33: 6
D34: Western RS 262 Received reported on page 328 | G34: =+E13+E14 -> 1771583 | H34: =+E15 -> -18026 | I34: 1753557 | J34: see above
D35: Western RS 263 Received reported on page 328 | G35: =+F13+F14 -> 93192 | H35: =+F15 -> 161 | I35: 93353 | J35: see above
D36: Black Hills (losses paid financially to PacifiCorp Energy) | G36: =+'Attachment D '!L18 -> 210175 | H36: =+'Attachment D '!L19 -> 12160 | I36: 222335 | J36: 10
D37: State of South Dakota - losses physically settled | G37: =+'Attachment D '!N18 -> 17212 | H37: =+'Attachment D '!N19 -> 22 | I37: 17234 | J37: 11
D38: Network/OS/and other rate schedules [1] | G38: 8021359 | H38: -131483 | I38: 7889876 | J38: 12
D40: Total Received per 401a Line 16 | G40: =SUM(G32:G38) -> 13803075 | H40: =SUM(H32:H38) -> -128476 | I40: =SUM(I32:I38) -> 13674599
F103: Total point-to-point schedules subject to losses (as reported on FERC Form 1, page 329)

Sheet Attachment D
A2: 2014 328 MWH RECEIVED/DELIVERED
A3: PT-TO-PT MW PHYSICAL SETTLEMENT AND BLACK HILLS
H5: Statistical | I5: Rate Schedule | L5: Black
B6: Page # | D6: Line # | F6: Customer | H6: Classification | I6: Tariff Number | J6: MWH | L6: Hills | N6: Physical | P6: Total
B8: 329 | D8: 5 | F8: Black Hills/Colorado Electric Utility Company, L.P. | H8: NF | I8: V11-1,2,8 | J8: 1398 | L8: =+J8 -> 1398 | P8: =SUM(L8:N8) -> 1398
B9: 329 | D9: 6 | F9: Black Hills/Colorado Electric Utility Company, L.P. | H9: SFP | I9: V11-1,2,7 | J9: 1829 | L9: 1829 | P9: 1829
B10: 329 | D10: 9 | F10: Black Hills Corporation | H10: NF | I10: V11-1,2,8 | J10: 13155 | L10: 13155 | P10: 13155
B11: 329 | D11: 10 | F11: Black Hills Corporation | H11: AD | I11: V11-1,2,8 | J11: 397 | L11: 397 | P11: 397
B12: 329 | D12: 11 | F12: Black Hills Corporation | H12: SFP | I12: V11-1,2,7 | J12: 4035 | L12: 4035 | P12: 4035
B13: 329 | D13: 14 | F13: Black Hills Corporation | H13: LFP | I13: V11-1,2,7 | J13: 182880 | L13: 182880 | P13: 182880
B14: 329 | D14: 15 | F14: Black Hills Corporation | H14: AD | I14: V11-1,2,7 | J14: 6481 | L14: 6481 | P14: 6481
B15: 329.4 | D15: 18 | F15: State of South Dakota | H15: LFP | I15: 7V11-7 | J15: 12235 | N15: =+J15 -> 12235 | P15: 12235
B16: 329.4 | D16: 19 | F16: State of South Dakota | H16: AD | I16: 7V11-7 | J16: 1496 | N16: 1496 | P16: 1496
B17: 329.4 | D17: 20 | F17: State of South Dakota | H17: SFP | I17: 7V11-7 | J17: 3481 | N17: 3481 | P17: 3481
F18: Total | J18: =SUM(J8:J17) -> 227387 | L18: =SUM(L8:L17) -> 210175 | N18: =SUM(N8:N17) -> 17212 | P18: =SUM(P8:P17) -> 227387
F19: Accruals | J19: =+L19+N19 -> 12182 | L19: 12160 | N19: 22 | P19: =SUM(L19:N19) -> 12182
F20: Total Black Hills and Physical received/delivered | J20: =+J18+J19 -> 239569 | L20: =+L18+L19 -> 222335 | N20: =+N18+N19 -> 17234 | P20: =+P18+P19 -> 239569
J21: REF | L21: 10 | N21: 11

Sheet Attachment E
A2: 2014 FERC FORM 1 PAGES 310 AND 311
A3: SALES FOR RESALE (Account 447)
A4: TRANSMISSION AGREEMENTS FINANCIALLY SETTLED
I6: Actual Demand
E7: Statistical | F7: Footnote | G7: FERC Rate | H7: Average | I7: Average | J7: Average
A8: Page | C8: Line | D8: Name of Company or Public Authority | E8: Classifi- | F8: for | G8: Schedule or | H8: Monthly Billing | I8: Monthly | J8: Monthly | K8: Megawatthours
A9: No. | C9: No. | D9: [Footnote Affiliations] | E9: cations | F9: col (b) | G9: Tariff Number | H9: Demand (MW) | I9: NCP Demand | J9: CP Demand | K9: Sold
D10: (a) | E10: (b) | G10: (c) | H10: (d) | I10: (e) | J10: (f) | K10: (g) | L10: REF
D11: Nonrequirement Sales
A12: 311.1 | C12: 5 | D12: Basin Electric Power Cooperative | E12: SF | G12: T-11 | H12: NA | I12: NA | J12: NA | K12: 173
A13: 311.1 | C13: 9 | D13: Black Hills Wyoming, Inc. | E13: SF | G13: T-11 | H13: NA | I13: NA | J13: NA | K13: 39
A14: 311.1 | C14: 11 | D14: Bonneville Power Administration | E14: LF | F14: 3 | G14: 368 | H14: NA | I14: NA | J14: NA | K14: 2748
A15: 311.1 | C15: 12 | D15: Bonneville Power Administration | E15: LF | F15: 4 | G15: T-11 | H15: NA | I15: NA | J15: NA | K15: 16022
A16: 311.1 | C16: 14 | D16: Bonneville Power Administration | E16: SF | G16: T-11 | H16: NA | I16: NA | J16: NA | K16: 13
A17: 311.2 | C17: 8 | D17: Cargill Power Markets, LLC | E17: SF | G17: T-11 | H17: NA | I17: NA | J17: NA | K17: 1706
A18: 311.3 | C18: 3 | D18: Constellation Energy Commodities Group, Inc. | E18: SF | G18: T-11 | H18: NA | I18: NA | J18: NA | K18: 122
A19: 311.3 | C19: 4 | D19: Constellation Energy Commodities Group, Inc. | E19: SF | G19: T-11 | H19: NA | I19: NA | J19: NA | K19: 26
A20: 311.3 | C20: 5 | D20: Coral Power, LLC | E20: SF | G20: T-11 | H20: NA | I20: NA | J20: NA | K20: 7367
A21: 311.3 | C21: 6 | D21: Deseret Generation & Transmission Cooperative | E21: SF | G21: T-11 | H21: NA | I21: NA | J21: NA | K21: 273
A22: 311.4 | C22: 2 | D22: Iberdrola Renewables, LLC | E22: LF | F22: 5 | G22: T-11 | H22: NA | I22: NA | J22: NA | K22: 3787
A23: 311.4 | C23: 3 | D23: Iberdrola Renewables, LLC | E23: SF | G23: T-11 | H23: NA | I23: NA | J23: NA | K23: 14435
A24: 311.4 | C24: 4 | D24: Iberdrola Renewables, LLC | E24: SF | G24: T-11 | H24: NA | I24: NA | J24: NA | K24: 34
A25: 311.4 | C25: 7 | D25: Idaho Power Company | E25: LF | F25: 6 | G25: T-11 | H25: NA | I25: NA | J25: NA | K25: 2737
A26: 311.4 | C26: 8 | D26: Idaho Power Company | E26: SF | G26: T-11 | H26: NA | I26: NA | J26: NA | K26: 2468
A27: 311.4 | C27: 12 | D27: J.P. Morgan Ventures Energy Corporation | E27: SF | G27: T-11 | H27: NA | I27: NA | J27: NA | K27: 997
A28: 311.4 | C28: 13 | D28: J.P. Morgan Ventures Energy Corporation | E28: SF | G28: T-11 | H28: NA | I28: NA | J28: NA | K28: 224
A29: 311.5 | C29: 1 | D29: Los Angeles Department of Water and Power | E29: SF | G29: T-11 | H29: NA | I29: NA | J29: NA | K29: 186
A30: 311.5 | C30: 3 | D30: Macquarie Energy LLC | E30: SF | G30: T-11 | H30: NA | I30: NA | J30: NA | K30: 525
A31: 311.5 | C31: 7 | D31: Morgan Stanley Capital Group Inc. | E31: SF | G31: T-11 | H31: NA | I31: NA | J31: NA | K31: 6959
A32: 311.5 | C32: 11 | D32: Nevada Power Company | E32: SF | F32: 7 | G32: T-11 | H32: NA | I32: NA | J32: NA | K32: 234
A33: 311.5 | C33: 13 | D33: NextEra Energy Power Marketing, LLC | E33: LF | F33: 8 | G33: T-11 | H33: NA | I33: NA | J33: NA | K33: 9697
A34: 311.5 | C34: 14 | D34: NextEra Energy Power Marketing, LLC | E34: SF | G34: T-11 | H34: NA | I34: NA | J34: NA | K34: 47
A35: 311.6 | C35: 1 | D35: NextEra Energy Power Marketing, LLC | E35: SF | G35: T-11 | H35: NA | I35: NA | J35: NA | K35: 7
A36: 311.6 | C36: 3 | D36: Noble Americas Energy Solutions LLC | E36: LF | F36: 9 | G36: T-11 | H36: NA | I36: NA | J36: NA | K36: 923
A37: 311.6 | C37: 8 | D37: PPL EnergyPlus, LLC | E37: SF | G37: T-11 | H37: NA | I37: NA | J37: NA | K37: 427
A38: 311.6 | C38: 10 | D38: Pacific Gas & Electric Company | E38: SF | G38: T-11 | H38: NA | I38: NA | J38: NA | K38: 22
A39: 311.6 | C39: 11 | D39: Portland General Electric Company | E39: SF | G39: T-11 | H39: NA | I39: NA | J39: NA | K39: 475
A40: 311.6 | C40: 14 | D40: Powerex Corporation | E40: LF | F40: 10 | G40: T-11 | H40: NA | I40: NA | J40: NA | K40: 28390
A41: 311.7 | C41: 1 | D41: Powerex Corporation | E41: SF | G41: T-11 | H41: NA | I41: NA | J41: NA | K41: 22426
A42: 311.7 | C42: 4 | D42: Public Service Company of Colorado | E42: SF | G42: T-11 | H42: NA | I42: NA | J42: NA | K42: 27
A43: 311.8 | C43: 1 | D43: Puget Sound Energy, Inc. | E43: SF | G43: T-11 | H43: NA | I43: NA | J43: NA | K43: 84
A44: 311.8 | C44: 4 | D44: Rainbow Energy Marketing Corporation | E44: SF | G44: T-11 | H44: NA | I44: NA | J44: NA | K44: 759
A45: 311.8 | C45: 8 | D45: Sacramento Municipal Utility District | E45: LF | F45: 12 | G45: T-11 | H45: NA | I45: NA | J45: NA | K45: 5027
A46: 311.8 | C46: 10 | D46: Salt River Project | E46: LF | F46: 13 | G46: T-11 | H46: NA | I46: NA | J46: NA | K46: 5655
A47: 311.8 | C47: 11 | D47: Salt River Project | E47: SF | G47: T-11 | H47: NA | I47: NA | J47: NA | K47: 188
A48: 311.9 | C48: 5 | D48: Sierra Pacific Power Company | E48: SF | F48: 14 | G48: T-11 | H48: NA | I48: NA | J48: NA | K48: 12
A49: 311.9 | C49: 8 | D49: Southern California Edison Company | E49: SF | G49: T-11 | H49: NA | I49: NA | J49: NA | K49: 13694
A50: 311.9 | C50: 9 | D50: Southern California Edison Company | E50: SF | G50: T-11 | H50: NA | I50: NA | J50: NA | K50: 9
A51: 311.9 | C51: 11 | D51: Southern California Public Power Authority | E51: SF | G51: T-11 | H51: NA | I51: NA | J51: NA | K51: 49
A52: 311.10 | C52: 1 | D52: Tenaska Power Services Co. | E52: SF | G52: T-11 | H52: NA | I52: NA | J52: NA | K52: 3857
A53: 311.10 | C53: 5 | D53: The Energy Authority, Inc. | E53: SF | G53: T-11 | H53: NA | I53: NA | J53: NA | K53: 146
A54: 311.10 | C54: 7 | D54: Thermo No. 1 BE-01, LLC | E54: LF | F54: 15 | G54: T-11 | H54: NA | I54: NA | J54: NA | K54: 2510
A55: 311.10 | C55: 8 | D55: TransAlta Energy Marketing (U.S.) Inc. | E55: SF | G55: T-11 | H55: NA | I55: NA | J55: NA | K55: 2624
A56: 311.10 | C56: 11 | D56: Tri-State Generation and Transmission Association, Inc. | E56: LF | F56: 16 | G56: T-11 | H56: NA | I56: NA | J56: NA | K56: 1257
A57: 311.10 | C57: 12 | D57: Tri-State Generation and Transmission Association, Inc. | E57: SF | G57: T-11 | H57: NA | I57: NA | J57: NA | K57: 631
A58: 311.11 | C58: 4 | D58: Utah Associated Municipal Power Systems | E58: SF | G58: T-11 | H58: NA | I58: NA | J58: NA | K58: 288
A59: 311.11 | C59: 8 | D59: Utah Municipal Power Agency | E59: SF | G59: T-11 | H59: NA | I59: NA | J59: NA | K59: 2
A60: 311.11 | C60: 11 | D60: Western Area Power Administration | E60: SF | G60: T-11 | H60: NA | I60: NA | J60: NA | K60: 40
I62: Total Pt-to-Pt, Network, and OS Financially Settled | K62: =SUM(K12:K61) -> 160348 | L62: 35
A64: 311.1 | C64: 7 | D64: Black Hills Power, Inc (sales plus losses) | E64: LF | G64: 441 | H64: NA | I64: NA | J64: NA | K64: 343081
F103: Total point-to-point schedules subject to losses (as reported on FERC Form 1, page 329)

Sheet Attachment F
B1: 2014 Off System Sales/Purchases Summary
B4: Amounts in thousands of MWh | C4: MWh | D4: REF
B5: PAC01 Off System Sales (MidC)-purchases | C5: 1823.422
B6: PAC01 Off System Sales (Cholla, Col, Herm, Wyo, YTP etc) - sales | C6: 2500.464
B7: Craig generation sales [1] | C7: 788.383
B8: Hayden generation sales [1] | C8: 579.513
B9: Total third-party off system sales/purchases | C9: =SUM(C5:C8) -> 5691.782 | D9: 16, 36
B11: MidC filter
B12: LoadPoint Does Not=CHEHALIS
B13: LCA Does Not=PACW
B14: AssignmentRef=212;213;NOR
B15: ContractMkt Does Not=ALCOA Exchange;No Spill Exch;RR CEA
B16: Path=MIDC/MIDC;MIDC/MIDCRemote
B17: TSSubClass Does Not=FCR_PHYSICAL;SECONDARY
B18: ScheduleType=Energy
B19: TagNotes Does Not=DOPD Settlement
B20: FlowType=Export
B21: LSE Does Not=PAC01 | D21: WYOEASTNNH
D22: 960
B23: Cholla, Colstrip, Hermiston, Wyodak and YTP filter: | D23: 56
B24: GPE=PAC01 [2] | D24: 0
B25: Scheduletype = Energy | D25: 0
B26: TagNotes does not = Coal Feed; Colstrip Startup | D26: 0
B27: LSE does not = PAC01 | D27: 0
B28: LoadPoint does not = NWMTLosses | D28: 0
B29: TSSubClass does not = FCR_PHYSICAL;SECONDARY | D29: 0
B30: Assignment Ref = 201;204;205;207;215;216;217;218;NOR; 230SI;231SI; 235SI; 250SI [3]
B31: FlowType=Export [4] | D31: 0
B32: GeneratorPointDoes Not = PACENNH and PACWNNH [5] | D32: 595
D33: 2400
B34: Jim Bridger filter [6]
B35: Path=JBSN/JBSN | D35: =SUM(D22:D33) -> 4011
B36: ScheduleType=Energy
B37: TagTransOwner=BHPM01
B38: GCA=PACW
B39: LSE Does Not=PAC01
B40: TagNotes Does Not=54234800
B41: AssignmentRef=206;NOR
B42: LoadPoint Does Not=IPCO_LOSS
A44: Notes and adjustments to 2010 query :
A45: [1] | B45: Off system sales at Craig and Hyden generation bus are not captured in the E-Tag query due to different tagging conventions. Data obtained from company records.
A46: [2] | B46: Replaced "Path=....." with "GPE=PAC01" which has the same effect on the filter except there is no need to add a new path to this list whenever there is a new path to add.
A47: [3] | B47: Added 230SI (Juniper Wind), 231SI (Goodnoe Hills), 235SI (Chehalis Gen) and 250SI (Hermiston Gen) to this list.
A48: [4] | B48: Added "FlowType=Export" to limit the view to Export tags only as opposed to Export AND an Import which would cancel each other when tags are totaled.
A49: [5] | B49: Added "GeneratorPointDoes Not = PACENNH and PACWNNH" to exclude non-generator bus transactions.
A50: [6] | B50: No off system sales at Jim Bridger generation bus have been identified in 2014.

Sheet Sheet1
